[Event "*** Titled Tuesday Blitz"]
[Site "Chess.com"]
[Date "2019.11.05"]
[Round "3"]
[White "51616516516"]
[Black "colegiodemadrid"]
[Result "0-1"]
[WhiteElo "2190"]
[BlackElo "2409"]
[TimeControl "180+2"]
[EndTime "13:37:24 PST"]
[Termination "colegiodemadrid won by resignation"]

1. d4 {[%clk 0:02:56.6]} 1... d5 {[%clk 0:02:59.8]} 2. c4 {[%clk 0:02:57.2]}
2... e6 {[%clk 0:03:00.5]} 3. Nc3 {[%clk 0:02:58]} 3... Nf6 {[%clk 0:03:01.4]}
4. cxd5 {[%clk 0:02:54.6]} 4... exd5 {[%clk 0:03:02]} 5. Bg5 {[%clk 0:02:53.9]}
5... Be7 {[%clk 0:03:03.5]} 6. e3 {[%clk 0:02:50.1]} 6... c6 {[%clk 0:03:04]} 7.
Qc2 {[%clk 0:02:48.4]} 7... Nbd7 {[%clk 0:03:05.4]} 8. Bd3 {[%clk 0:02:48.6]}
8... h6 {[%clk 0:03:07]} 9. Bh4 {[%clk 0:02:45.2]} 9... Nh5 {[%clk 0:03:08.6]}
10. Bxe7 {[%clk 0:02:44]} 10... Qxe7 {[%clk 0:03:10.5]} 11. Nge2 {[%clk
0:02:34.6]} 11... Nb6 {[%clk 0:03:08.9]} 12. O-O-O {[%clk 0:02:34.9]} 12... Be6
{[%clk 0:03:08.9]} 13. Kb1 {[%clk 0:02:33.7]} 13... O-O-O {[%clk 0:03:09.1]} 14.
Na4 {[%clk 0:02:25.4]} 14... Nxa4 {[%clk 0:03:05.7]} 15. Qxa4 {[%clk 0:02:27.3]}
15... Kb8 {[%clk 0:03:07.6]} 16. Rc1 {[%clk 0:02:25.6]} 16... Rc8 {[%clk
0:03:08]} 17. Nc3 {[%clk 0:02:09.3]} 17... f5 {[%clk 0:02:57.7]} 18. Qa5 {[%clk
0:01:36]} 18... Nf6 {[%clk 0:02:52.4]} 19. Na4 {[%clk 0:01:32.6]} 19... Qc7
{[%clk 0:02:50.4]} 20. Qxc7+ {[%clk 0:01:25]} 20... Rxc7 {[%clk 0:02:52.3]} 21.
Nc5 {[%clk 0:01:25.9]} 21... Bc8 {[%clk 0:02:52.9]} 22. f3 {[%clk 0:01:19.5]}
22... Re7 {[%clk 0:02:52.5]} 23. Rce1 {[%clk 0:01:17.3]} 23... Rhe8 {[%clk
0:02:52.5]} 24. Kc2 {[%clk 0:00:36.7]} 24... Rxe3 {[%clk 0:02:50.6]} 25. Kd2
{[%clk 0:00:37.8]} 25... Rxe1 {[%clk 0:02:49.3]} 26. Rxe1 {[%clk 0:00:38.5]}
26... Rxe1 {[%clk 0:02:50.8]} 27. Kxe1 {[%clk 0:00:40.4]} 27... b6 {[%clk
0:02:52.1]} 28. Nb3 {[%clk 0:00:38.8]} 28... Kc7 {[%clk 0:02:53.3]} 29. Nc1
{[%clk 0:00:36.5]} 29... Kd6 {[%clk 0:02:54.1]} 30. Ne2 {[%clk 0:00:37.3]} 30...
c5 {[%clk 0:02:54.9]} 31. h4 {[%clk 0:00:31.5]} 31... c4 {[%clk 0:02:52.5]} 32.
Bc2 {[%clk 0:00:30.4]} 32... b5 {[%clk 0:02:50]} 33. a3 {[%clk 0:00:28.3]} 33...
a5 {[%clk 0:02:49.6]} 34. Ng3 {[%clk 0:00:14.3]} 34... g6 {[%clk 0:02:43]} 35.
h5 {[%clk 0:00:09.9]} 35... Nxh5 {[%clk 0:02:43.1]} 36. Nxh5 {[%clk 0:00:11]}
36... gxh5 {[%clk 0:02:42.5]} 37. f4 {[%clk 0:00:12.9]} 37... h4 {[%clk
0:02:41.8]} 38. Kf2 {[%clk 0:00:12.8]} 38... b4 {[%clk 0:02:43.1]} 39. axb4
{[%clk 0:00:12.6]} 39... axb4 {[%clk 0:02:43.5]} 40. Kg1 {[%clk 0:00:13.6]}
40... b3 {[%clk 0:02:41.5]} 41. Bb1 {[%clk 0:00:14.2]} 41... Kc6 {[%clk
0:02:37.5]} 42. Kh2 {[%clk 0:00:14.9]} 42... Kb5 {[%clk 0:02:38.3]} 43. Kh3
{[%clk 0:00:15.8]} 43... Kb4 {[%clk 0:02:40]} 44. Kxh4 {[%clk 0:00:16.7]} 44...
c3 {[%clk 0:02:41.4]} 45. bxc3+ {[%clk 0:00:17.6]} 45... Kxc3 {[%clk 0:02:42.8]}
46. Kh5 {[%clk 0:00:15]} 46... Kxd4 {[%clk 0:02:43.9]} 47. Kxh6 {[%clk
0:00:14.4]} 47... Ke3 {[%clk 0:02:43.8]} 48. Kg5 {[%clk 0:00:11]} 48... d4
{[%clk 0:02:44.8]} 49. g4 {[%clk 0:00:04.1]} 49... fxg4 {[%clk 0:02:43.9]} 50.
f5 {[%clk 0:00:05.1]} 50... Bxf5 {[%clk 0:02:42.9]} 51. Kxf5 {[%clk 0:00:03]}
51... g3 {[%clk 0:02:44.1]} 0-1

[Event "*** Titled Tuesday Blitz"]
[Site "Chess.com"]
[Date "2019.11.05"]
[Round "3"]
[White "IMAghasiyevKamal"]
[Black "yjjga"]
[Result "1-0"]
[WhiteElo "2417"]
[BlackElo "2074"]
[TimeControl "180+2"]
[EndTime "13:37:30 PST"]
[Termination "IMAghasiyevKamal won on time"]

1. d4 {[%clk 0:02:56.8]} 1... d5 {[%clk 0:02:44]} 2. c4 {[%clk 0:02:56]} 2... c6
{[%clk 0:02:45.4]} 3. Nf3 {[%clk 0:02:53.7]} 3... Nf6 {[%clk 0:02:46.7]} 4. e3
{[%clk 0:02:54.5]} 4... Bg4 {[%clk 0:02:35.9]} 5. h3 {[%clk 0:02:51.6]} 5... Bh5
{[%clk 0:02:33.4]} 6. g4 {[%clk 0:02:52.3]} 6... Bg6 {[%clk 0:02:34.1]} 7. Nc3
{[%clk 0:02:52.1]} 7... e6 {[%clk 0:02:32]} 8. Ne5 {[%clk 0:02:44.5]} 8... Nbd7
{[%clk 0:02:30.6]} 9. Nxg6 {[%clk 0:02:42.6]} 9... hxg6 {[%clk 0:02:32.5]} 10.
Bg2 {[%clk 0:02:41.5]} 10... Bd6 {[%clk 0:02:22.7]} 11. Qb3 {[%clk 0:02:33.4]}
11... Rb8 {[%clk 0:01:44.1]} 12. g5 {[%clk 0:02:16.2]} 12... dxc4 {[%clk
0:01:37.7]} 13. Qxc4 {[%clk 0:02:13.4]} 13... Nd5 {[%clk 0:01:38.2]} 14. h4
{[%clk 0:01:53.7]} 14... Nxc3 {[%clk 0:01:29.7]} 15. bxc3 {[%clk 0:01:39.4]}
15... e5 {[%clk 0:00:49]} 16. e4 {[%clk 0:00:47.7]} 16... Nb6 {[%clk 0:00:19.9]}
17. Qb3 {[%clk 0:00:38.4]} 17... O-O {[%clk 0:00:20.8]} 18. h5 {[%clk
0:00:36.7]} 18... gxh5 {[%clk 0:00:19.9]} 19. Rxh5 {[%clk 0:00:19.8]} 19... Qe7
{[%clk 0:00:19.2]} 20. Be3 {[%clk 0:00:17.3]} 20... exd4 {[%clk 0:00:18.2]} 21.
cxd4 {[%clk 0:00:17.3]} 21... Bb4+ {[%clk 0:00:19.4]} 22. Ke2 {[%clk 0:00:18]}
22... a5 {[%clk 0:00:18.5]} 23. Rah1 {[%clk 0:00:17.7]} 1-0

[Event "*** Titled Tuesday Blitz"]
[Site "Chess.com"]
[Date "2019.11.05"]
[Round "3"]
[White "Olga_Ustinova"]
[Black "saraswathii"]
[Result "1/2-1/2"]
[WhiteElo "2383"]
[BlackElo "2193"]
[TimeControl "180+2"]
[EndTime "13:37:32 PST"]
[Termination "Game drawn by repetition"]

1. d4 {[%clk 0:03:01.9]} 1... Nc6 {[%clk 0:02:51.5]} 2. Nf3 {[%clk 0:03:03.8]}
2... d5 {[%clk 0:02:48.1]} 3. Bf4 {[%clk 0:03:05.1]} 3... Nf6 {[%clk 0:02:48.8]}
4. e3 {[%clk 0:03:05.8]} 4... g6 {[%clk 0:02:46.7]} 5. Nbd2 {[%clk 0:03:06.3]}
5... Bg7 {[%clk 0:02:45.5]} 6. c3 {[%clk 0:03:07.1]} 6... O-O {[%clk 0:02:44.6]}
7. h3 {[%clk 0:03:07.5]} 7... h5 {[%clk 0:02:38.3]} 8. Be2 {[%clk 0:03:08.4]}
8... Re8 {[%clk 0:02:28.6]} 9. O-O {[%clk 0:03:07.2]} 9... Nh7 {[%clk
0:02:25.6]} 10. Re1 {[%clk 0:03:05.9]} 10... e5 {[%clk 0:02:25.1]} 11. dxe5
{[%clk 0:03:05.9]} 11... Nxe5 {[%clk 0:02:27]} 12. Nxe5 {[%clk 0:02:52]} 12...
Bxe5 {[%clk 0:02:28.9]} 13. Bxe5 {[%clk 0:02:53.9]} 13... Rxe5 {[%clk
0:02:30.8]} 14. Nf3 {[%clk 0:02:55.8]} 14... Re8 {[%clk 0:02:30.1]} 15. Qb3
{[%clk 0:02:53.2]} 15... c6 {[%clk 0:02:29.1]} 16. Rad1 {[%clk 0:02:54.1]} 16...
Qb6 {[%clk 0:02:27]} 17. Qc2 {[%clk 0:02:50.5]} 17... Be6 {[%clk 0:02:19]} 18.
Bd3 {[%clk 0:02:48.4]} 18... Nf8 {[%clk 0:02:15.6]} 19. Re2 {[%clk 0:02:44.2]}
19... Kg7 {[%clk 0:02:12.1]} 20. Red2 {[%clk 0:02:45.3]} 20... c5 {[%clk
0:02:05.9]} 21. c4 {[%clk 0:02:45.5]} 21... Rad8 {[%clk 0:02:03.3]} 22. cxd5
{[%clk 0:02:46]} 22... Rxd5 {[%clk 0:02:03.8]} 23. b3 {[%clk 0:02:43.9]} 23...
Red8 {[%clk 0:01:57.4]} 24. Bc4 {[%clk 0:02:37.6]} 24... Rxd2 {[%clk 0:01:52.3]}
25. Rxd2 {[%clk 0:02:38.8]} 25... Rxd2 {[%clk 0:01:49]} 26. Nxd2 {[%clk
0:02:39.1]} 26... Nd7 {[%clk 0:01:45.6]} 27. Qc3+ {[%clk 0:02:39.2]} 27... Kg8
{[%clk 0:01:44.5]} 28. Ne4 {[%clk 0:02:39.8]} 28... Bxc4 {[%clk 0:01:37.8]} 29.
Qxc4 {[%clk 0:02:41.7]} 29... Qc6 {[%clk 0:01:32.7]} 30. Ng5 {[%clk 0:02:42]}
30... Ne5 {[%clk 0:01:29.9]} 31. Qf4 {[%clk 0:02:43.4]} 31... Qd6 {[%clk
0:01:22.4]} 32. Ne4 {[%clk 0:02:40.6]} 32... Qe7 {[%clk 0:01:20.6]} 33. Nf6+
{[%clk 0:02:27.6]} 33... Kg7 {[%clk 0:01:17.4]} 34. Nd5 {[%clk 0:02:29.5]} 34...
Qd6 {[%clk 0:01:12]} 35. e4 {[%clk 0:02:30.4]} 35... Qe6 {[%clk 0:01:03.6]} 36.
f3 {[%clk 0:02:28.3]} 36... c4 {[%clk 0:00:59.6]} 37. bxc4 {[%clk 0:02:22.5]}
37... Nxc4 {[%clk 0:01:01.5]} 38. h4 {[%clk 0:02:24.1]} 38... Nb6 {[%clk
0:00:56.7]} 39. Ne3 {[%clk 0:02:16.4]} 39... Qxa2 {[%clk 0:00:52.2]} 40. Qe5+
{[%clk 0:02:17.4]} 40... Kg8 {[%clk 0:00:50.6]} 41. Qb8+ {[%clk 0:02:18.3]}
41... Kg7 {[%clk 0:00:47.6]} 42. Qxb7 {[%clk 0:02:19]} 42... Qa5 {[%clk
0:00:42.8]} 43. Kh2 {[%clk 0:02:02.8]} 43... Qe5+ {[%clk 0:00:37]} 44. Kh3
{[%clk 0:02:03.5]} 44... Qe6+ {[%clk 0:00:27.7]} 45. Kh2 {[%clk 0:02:04.8]}
45... Qa2 {[%clk 0:00:23]} 46. Kh3 {[%clk 0:01:59.8]} 46... Qe6+ {[%clk
0:00:22.6]} 47. Kg3 {[%clk 0:01:54]} 47... Qd6+ {[%clk 0:00:21.1]} 48. Kh3
{[%clk 0:01:50.9]} 48... Qe6+ {[%clk 0:00:21.6]} 1/2-1/2

[Event "*** Titled Tuesday Blitz"]
[Site "Chess.com"]
[Date "2019.11.05"]
[Round "3"]
[White "catalin009"]
[Black "VerdeNotte"]
[Result "0-1"]
[WhiteElo "2549"]
[BlackElo "2785"]
[TimeControl "180+2"]
[EndTime "13:37:33 PST"]
[Termination "VerdeNotte won by resignation"]

1. e4 {[%clk 0:03:01]} 1... c5 {[%clk 0:02:57.1]} 2. Nf3 {[%clk 0:03:01.5]} 2...
g6 {[%clk 0:02:56.6]} 3. d4 {[%clk 0:02:58.6]} 3... cxd4 {[%clk 0:02:57.2]} 4.
Nxd4 {[%clk 0:03:00.1]} 4... Nf6 {[%clk 0:02:58.3]} 5. Nc3 {[%clk 0:02:59.9]}
5... d6 {[%clk 0:02:58.8]} 6. Be3 {[%clk 0:02:42.6]} 6... Nc6 {[%clk 0:02:59.3]}
7. Bc4 {[%clk 0:02:26.3]} 7... Ng4 {[%clk 0:02:57.7]} 8. Nxc6 {[%clk 0:02:05.7]}
8... bxc6 {[%clk 0:02:56]} 9. Bd4 {[%clk 0:02:04.6]} 9... e5 {[%clk 0:02:55.4]}
10. Qf3 {[%clk 0:02:01.9]} 10... Qf6 {[%clk 0:02:43]} 11. Qxf6 {[%clk
0:01:59.9]} 11... Nxf6 {[%clk 0:02:44.9]} 12. Be3 {[%clk 0:01:59.7]} 12... Ng4
{[%clk 0:02:42.6]} 13. Bd2 {[%clk 0:01:58.8]} 13... Bh6 {[%clk 0:02:40.8]} 14.
Bxh6 {[%clk 0:01:54]} 14... Nxh6 {[%clk 0:02:42.7]} 15. O-O-O {[%clk 0:01:52]}
15... Ke7 {[%clk 0:02:43.8]} 16. h4 {[%clk 0:01:33.7]} 16... Ng4 {[%clk
0:02:43.6]} 17. Rd2 {[%clk 0:01:31.5]} 17... Be6 {[%clk 0:02:42.8]} 18. Bxe6
{[%clk 0:01:23.5]} 18... fxe6 {[%clk 0:02:44.7]} 19. h5 {[%clk 0:01:19.5]} 19...
Nf6 {[%clk 0:02:42.3]} 20. hxg6 {[%clk 0:01:07.2]} 20... hxg6 {[%clk 0:02:44.2]}
21. Rdd1 {[%clk 0:01:08.7]} 21... Ng4 {[%clk 0:02:38.6]} 22. f3 {[%clk
0:00:38.3]} 22... Ne3 {[%clk 0:02:36.3]} 23. Rdg1 {[%clk 0:00:33.7]} 23... Rxh1
{[%clk 0:02:30.2]} 24. Rxh1 {[%clk 0:00:34.8]} 24... Nxg2 {[%clk 0:02:31.9]} 25.
Rh7+ {[%clk 0:00:35.1]} 25... Kf6 {[%clk 0:02:32.9]} 26. Rc7 {[%clk 0:00:32.2]}
26... Nh4 {[%clk 0:01:55.4]} 27. Rxc6 {[%clk 0:00:30.8]} 27... Rd8 {[%clk
0:01:56.3]} 28. Nb5 {[%clk 0:00:29.8]} 28... Nxf3 {[%clk 0:01:55.6]} 29. Nxd6
{[%clk 0:00:24.3]} 29... Nd4 {[%clk 0:01:51.9]} 30. Ra6 {[%clk 0:00:24.2]} 30...
g5 {[%clk 0:01:50.6]} 31. Kd2 {[%clk 0:00:08.3]} 31... Nb5 {[%clk 0:01:50.6]}
32. Ke3 {[%clk 0:00:06.9]} 32... Rxd6 {[%clk 0:01:51.2]} 33. Ra5 {[%clk
0:00:08.1]} 33... Nd4 {[%clk 0:01:48]} 34. c3 {[%clk 0:00:08.1]} 34... Nc2+
{[%clk 0:01:47.6]} 35. Ke2 {[%clk 0:00:06.9]} 35... a6 {[%clk 0:01:47.8]} 36.
Rc5 {[%clk 0:00:06.9]} 36... Rd8 {[%clk 0:01:44.1]} 37. Rc6 {[%clk 0:00:03.9]}
37... g4 {[%clk 0:01:41.4]} 38. Rxa6 {[%clk 0:00:02.9]} 38... g3 {[%clk
0:01:41.6]} 39. Kf3 {[%clk 0:00:04.3]} 39... Rd3+ {[%clk 0:01:42.3]} 40. Kg2
{[%clk 0:00:05.1]} 40... Ne1+ {[%clk 0:01:43.3]} 41. Kf1 {[%clk 0:00:05.7]}
41... g2+ {[%clk 0:01:42.8]} 42. Kg1 {[%clk 0:00:05]} 42... Rf3 {[%clk
0:01:41.3]} 43. Ra8 {[%clk 0:00:03.9]} 43... Rf1+ {[%clk 0:01:42]} 0-1

[Event "*** Titled Tuesday Blitz"]
[Site "Chess.com"]
[Date "2019.11.05"]
[Round "3"]
[White "mortngabriel"]
[Black "FearNoEvil12"]
[Result "0-1"]
[WhiteElo "2286"]
[BlackElo "1963"]
[TimeControl "180+2"]
[EndTime "13:37:35 PST"]
[Termination "FearNoEvil12 won on time"]

1. e4 {[%clk 0:03:01.9]} 1... a6 {[%clk 0:03:01.1]} 2. d4 {[%clk 0:02:57.7]}
2... b5 {[%clk 0:03:02.2]} 3. Bd3 {[%clk 0:02:58]} 3... Bb7 {[%clk 0:03:03.5]}
4. Nf3 {[%clk 0:02:56.9]} 4... e6 {[%clk 0:03:05]} 5. O-O {[%clk 0:02:50.6]}
5... Nf6 {[%clk 0:03:06.2]} 6. Re1 {[%clk 0:02:49.4]} 6... d6 {[%clk 0:03:07]}
7. Nbd2 {[%clk 0:02:32.3]} 7... Nbd7 {[%clk 0:03:07.3]} 8. Nf1 {[%clk
0:02:32.5]} 8... h6 {[%clk 0:03:06.9]} 9. Ng3 {[%clk 0:02:32.7]} 9... g5 {[%clk
0:03:06.7]} 10. e5 {[%clk 0:02:26]} 10... Nd5 {[%clk 0:03:06.6]} 11. h3 {[%clk
0:02:10.1]} 11... Rg8 {[%clk 0:03:05.1]} 12. Nh2 {[%clk 0:02:04.8]} 12... dxe5
{[%clk 0:02:58.3]} 13. dxe5 {[%clk 0:02:05.5]} 13... Bc5 {[%clk 0:02:57.7]} 14.
Ng4 {[%clk 0:01:57.5]} 14... Nf4 {[%clk 0:02:52.3]} 15. Be4 {[%clk 0:01:51.8]}
15... Bxe4 {[%clk 0:02:43.6]} 16. Nxe4 {[%clk 0:01:51.7]} 16... Be7 {[%clk
0:02:43.6]} 17. Nxh6 {[%clk 0:01:46.8]} 17... Rg6 {[%clk 0:02:43.6]} 18. Ng4
{[%clk 0:01:44.9]} 18... Qc8 {[%clk 0:02:42.8]} 19. Qf3 {[%clk 0:01:31.7]} 19...
Nd5 {[%clk 0:02:34.2]} 20. Bd2 {[%clk 0:01:09.9]} 20... Qb7 {[%clk 0:02:33.4]}
21. Rad1 {[%clk 0:01:10.2]} 21... Kf8 {[%clk 0:02:17.7]} 22. Nef6 {[%clk
0:00:43.1]} 22... N7xf6 {[%clk 0:02:08]} 23. Nxf6 {[%clk 0:00:39.2]} 23... Bxf6
{[%clk 0:02:03.2]} 24. exf6 {[%clk 0:00:36.5]} 24... Rxf6 {[%clk 0:02:03.6]} 25.
Qh5 {[%clk 0:00:36.9]} 25... Rg6 {[%clk 0:02:03]} 26. Bxg5 {[%clk 0:00:18.1]}
26... Kg7 {[%clk 0:02:01.8]} 27. Rd4 {[%clk 0:00:10]} 27... Rh8 {[%clk
0:01:58.9]} 28. Qg4 {[%clk 0:00:10.9]} 28... c5 {[%clk 0:01:42.5]} 29. Rdd1
{[%clk 0:00:10.6]} 29... Nf6 {[%clk 0:01:25.1]} 30. Qf4 {[%clk 0:00:08.7]} 30...
Rh5 {[%clk 0:01:15.7]} 31. Bxf6+ {[%clk 0:00:05.8]} 31... Rxf6 {[%clk
0:01:15.9]} 32. Qg4+ {[%clk 0:00:07.7]} 32... Rg6 {[%clk 0:01:16.1]} 33. Qe4
{[%clk 0:00:07.1]} 33... Qe7 {[%clk 0:01:10.7]} 34. f4 {[%clk 0:00:06]} 34...
Rxh3 {[%clk 0:01:06.8]} 35. Qe5+ {[%clk 0:00:05.7]} 35... Kh7 {[%clk 0:00:59.9]}
36. Re2 {[%clk 0:00:04.2]} 36... Qh4 {[%clk 0:00:58.7]} 0-1

[Event "*** Titled Tuesday Blitz"]
[Site "Chess.com"]
[Date "2019.11.05"]
[Round "3"]
[White "GadimbayliA"]
[Black "Joshukid"]
[Result "1-0"]
[WhiteElo "2926"]
[BlackElo "2699"]
[TimeControl "180+2"]
[EndTime "13:37:36 PST"]
[Termination "GadimbayliA won by checkmate"]

1. e4 {[%clk 0:03:01.9]} 1... c6 {[%clk 0:02:59.8]} 2. Nf3 {[%clk 0:03:02.9]}
2... d5 {[%clk 0:02:59.6]} 3. exd5 {[%clk 0:03:04.8]} 3... cxd5 {[%clk
0:03:00.8]} 4. Ne5 {[%clk 0:03:06.2]} 4... e6 {[%clk 0:02:54]} 5. d4 {[%clk
0:03:07.2]} 5... Nd7 {[%clk 0:02:51.5]} 6. c3 {[%clk 0:03:05.2]} 6... Ngf6
{[%clk 0:02:50.1]} 7. Nd2 {[%clk 0:03:05.9]} 7... Nxe5 {[%clk 0:02:48.6]} 8.
dxe5 {[%clk 0:03:07.8]} 8... Nd7 {[%clk 0:02:50.5]} 9. Nf3 {[%clk 0:03:09.2]}
9... Be7 {[%clk 0:02:39.3]} 10. Bd3 {[%clk 0:03:09.6]} 10... h6 {[%clk
0:02:37.8]} 11. O-O {[%clk 0:03:07]} 11... Qc7 {[%clk 0:02:36.5]} 12. Re1 {[%clk
0:03:07.8]} 12... b6 {[%clk 0:02:37.5]} 13. a4 {[%clk 0:03:06.9]} 13... Bb7
{[%clk 0:02:38.2]} 14. a5 {[%clk 0:03:07.6]} 14... bxa5 {[%clk 0:02:38.9]} 15.
Bc2 {[%clk 0:03:02.9]} 15... Nb6 {[%clk 0:02:35.3]} 16. Rxa5 {[%clk 0:02:53.7]}
16... Nc4 {[%clk 0:02:29.5]} 17. Ra1 {[%clk 0:02:53.8]} 17... a5 {[%clk
0:02:31.1]} 18. b3 {[%clk 0:02:42]} 18... Nb6 {[%clk 0:02:20.6]} 19. Be3 {[%clk
0:02:42.4]} 19... Nd7 {[%clk 0:02:16.5]} 20. Nd4 {[%clk 0:02:21]} 20... Qxe5
{[%clk 0:02:07.1]} 21. Nb5 {[%clk 0:02:13.2]} 21... Qb8 {[%clk 0:01:42.2]} 22.
Qg4 {[%clk 0:02:13.4]} 22... Nf6 {[%clk 0:01:25.2]} 23. Qxg7 {[%clk 0:01:53.9]}
23... Rg8 {[%clk 0:01:24.7]} 24. Qxh6 {[%clk 0:01:54.7]} 24... d4 {[%clk
0:01:25]} 25. Bf4 {[%clk 0:01:50.6]} 25... Rxg2+ {[%clk 0:01:02.2]} 26. Kf1
{[%clk 0:01:51]} 26... Ng4 {[%clk 0:00:41]} 27. Qh8+ {[%clk 0:01:41.5]} 27...
Bf8 {[%clk 0:00:42.2]} 28. Rxe6+ {[%clk 0:01:26.3]} 28... fxe6 {[%clk
0:00:37.4]} 29. Bg6+ {[%clk 0:01:27.6]} 29... Ke7 {[%clk 0:00:16.6]} 30. Qh7+
{[%clk 0:01:27.3]} 30... Kd8 {[%clk 0:00:17.4]} 31. Bxb8 {[%clk 0:01:27]} 31...
Rxf2+ {[%clk 0:00:17.8]} 32. Ke1 {[%clk 0:01:27.3]} 32... Be7 {[%clk 0:00:13.4]}
33. Bd6 {[%clk 0:01:20.2]} 33... Bxd6 {[%clk 0:00:11.4]} 34. Nxd6 {[%clk
0:01:22.1]} 34... Bd5 {[%clk 0:00:08.8]} 35. Qg8+ {[%clk 0:01:12.5]} 35... Kd7
{[%clk 0:00:07.5]} 36. Ne8 {[%clk 0:01:13.2]} 36... dxc3 {[%clk 0:00:05.4]} 37.
Qg7+ {[%clk 0:01:11.4]} 37... Kc6 {[%clk 0:00:05.8]} 38. Qc7+ {[%clk 0:01:12.4]}
38... Kb5 {[%clk 0:00:07]} 39. Bd3+ {[%clk 0:01:13.3]} 39... Kb4 {[%clk
0:00:07.1]} 40. Qb6# {[%clk 0:01:14.3]} 1-0

[Event "*** Titled Tuesday Blitz"]
[Site "Chess.com"]
[Date "2019.11.05"]
[Round "3"]
[White "Shield12"]
[Black "2165149677570"]
[Result "1-0"]
[WhiteElo "2810"]
[BlackElo "2294"]
[TimeControl "180+2"]
[EndTime "13:37:40 PST"]
[Termination "Shield12 won by resignation"]

1. e4 {[%clk 0:03:01.9]} 1... c5 {[%clk 0:02:59.1]} 2. Nf3 {[%clk 0:03:02.9]}
2... d6 {[%clk 0:03:00.3]} 3. Nc3 {[%clk 0:03:04]} 3... Nf6 {[%clk 0:03:01.4]}
4. d4 {[%clk 0:03:05.1]} 4... cxd4 {[%clk 0:03:03.3]} 5. Nxd4 {[%clk 0:03:06.3]}
5... a6 {[%clk 0:03:04.7]} 6. h3 {[%clk 0:03:04.9]} 6... e5 {[%clk 0:03:05.6]}
7. Nde2 {[%clk 0:03:05.5]} 7... b5 {[%clk 0:03:07.2]} 8. Ng3 {[%clk 0:03:05.9]}
8... Bb7 {[%clk 0:03:07.9]} 9. Bg5 {[%clk 0:03:06.6]} 9... Nbd7 {[%clk
0:03:07.6]} 10. Nh5 {[%clk 0:03:07.9]} 10... h6 {[%clk 0:03:04.7]} 11. Bxf6
{[%clk 0:03:08.6]} 11... Nxf6 {[%clk 0:03:03.8]} 12. Nxf6+ {[%clk 0:03:09.1]}
12... Qxf6 {[%clk 0:03:05.7]} 13. a4 {[%clk 0:03:10.6]} 13... b4 {[%clk
0:02:44.1]} 14. Nd5 {[%clk 0:03:11.4]} 14... Qd8 {[%clk 0:02:45.6]} 15. Bc4
{[%clk 0:03:11.9]} 15... Rc8 {[%clk 0:02:15]} 16. Qd3 {[%clk 0:03:08.8]} 16...
Be7 {[%clk 0:02:16.3]} 17. a5 {[%clk 0:02:43.1]} 17... O-O {[%clk 0:02:11.8]}
18. O-O {[%clk 0:02:43.1]} 18... Bxd5 {[%clk 0:02:06.8]} 19. Bxd5 {[%clk
0:02:36.4]} 19... Qd7 {[%clk 0:01:48.1]} 20. Qxa6 {[%clk 0:02:29.3]} 20... Rxc2
{[%clk 0:01:47.5]} 21. Qb6 {[%clk 0:02:30.3]} 21... Qc7 {[%clk 0:01:11.9]} 22.
Qxc7 {[%clk 0:02:24.9]} 22... Rxc7 {[%clk 0:01:13.8]} 23. a6 {[%clk 0:02:26]}
23... Ra7 {[%clk 0:01:13.5]} 24. Rfc1 {[%clk 0:02:24.4]} 24... Rb8 {[%clk
0:01:10.9]} 25. Rc6 {[%clk 0:02:05]} 25... Kf8 {[%clk 0:01:02.4]} 26. Kf1 {[%clk
0:02:01.3]} 26... Ke8 {[%clk 0:01:03.3]} 27. Ke2 {[%clk 0:02:01.7]} 27... Kd7
{[%clk 0:01:00.6]} 28. Kd3 {[%clk 0:02:01.6]} 28... Bd8 {[%clk 0:00:58.3]} 29.
Kc4 {[%clk 0:01:57.6]} 29... Bb6 {[%clk 0:00:53.3]} 30. Kb3 {[%clk 0:01:57.5]}
30... f6 {[%clk 0:00:48.9]} 31. f3 {[%clk 0:01:55.6]} 31... Bc5 {[%clk
0:00:49.5]} 32. Ra4 {[%clk 0:01:37.6]} 32... Rc8 {[%clk 0:00:45.4]} 33. Rxc8
{[%clk 0:01:34.5]} 33... Kxc8 {[%clk 0:00:47.3]} 34. Bb7+ {[%clk 0:01:34.2]}
34... Kc7 {[%clk 0:00:41.4]} 35. Kc4 {[%clk 0:01:35.2]} 35... Kb6 {[%clk
0:00:29.5]} 36. b3 {[%clk 0:01:35.1]} 36... Kc7 {[%clk 0:00:30.2]} 37. Ra5
{[%clk 0:01:32.6]} 37... Kb6 {[%clk 0:00:13.4]} 38. Rb5+ {[%clk 0:01:32.6]}
38... Kc7 {[%clk 0:00:15.1]} 39. Rxc5+ {[%clk 0:01:30.7]} 39... dxc5 {[%clk
0:00:17]} 40. Kxc5 {[%clk 0:01:32.6]} 40... g6 {[%clk 0:00:14.3]} 41. Kxb4
{[%clk 0:01:31.5]} 41... Kb6 {[%clk 0:00:16.2]} 42. Kc4 {[%clk 0:01:32.8]} 42...
f5 {[%clk 0:00:08.2]} 43. Kd5 {[%clk 0:01:32.9]} 43... fxe4 {[%clk 0:00:08.9]}
44. fxe4 {[%clk 0:01:33.7]} 44... Kb5 {[%clk 0:00:06.8]} 45. Kxe5 {[%clk
0:01:34.3]} 45... Kb4 {[%clk 0:00:08.5]} 46. Kf6 {[%clk 0:01:35.4]} 46... Kxb3
{[%clk 0:00:10.1]} 47. e5 {[%clk 0:01:36.9]} 1-0